bitfinex-derivatives/quotes_BTCF0:USTF0_20251120
["timestamp","ask_amount","ask_price","bid_price","bid_amount"]
[1763658247753,0.00219803,87795.0,87785.0,0.0114042]
[1763658247954,0.00219803,87795.0,87794.0,0.18807]
[1763658248252,0.00219803,87795.0,87781.0,0.00017088]
[1763658248253,0.0114032,87794.0,87781.0,0.00017088]
[1763658248456,0.00219803,87793.0,87781.0,0.00017088]
[1763658248653,0.00017088,87799.0,87798.0,0.18807]
[1763658248854,0.00236891,87799.0,87798.0,0.18807]
[1763658249749,0.00236891,87799.0,87781.0,0.00017088]
[1763658249954,0.00236891,87799.0,87788.0,0.0114038]
[1763658250151,0.00236891,87799.0,87798.0,0.0868]
[1763658250358,0.00236891,87799.0,87781.0,0.18824088]
[1763658250359,0.0114047,87782.0,87781.0,0.18824088]
[1763658250552,0.07226273,87782.0,87781.0,8e-08]
[1763658250751,0.011406,87773.0,87761.0,0.24076]
[1763658250947,0.00219803,87772.0,87769.0,0.10127]
[1763658251147,0.00219803,87772.0,87761.0,0.05269]
[1763658251148,0.00219803,87772.0,87771.0,0.18807]
[1763658251452,0.00219803,87772.0,87761.0,0.24076]
[1763658251650,0.0114066,87768.0,87765.0,0.18807]
[1763658251850,0.00219803,87768.0,87767.0,0.18807]
[1763658252453,0.00219803,87768.0,87767.0,0.0868]
[1763658252655,0.0114077,87759.0,87758.0,0.00017088]
[1763658252851,0.01141,87741.0,87740.0,0.05269]
[1763658253051,0.00219803,87741.0,87740.0,0.24076]
[1763658253256,0.0114094,87746.0,87745.0,0.18807]
[1763658253558,0.02865793,87746.0,87745.0,0.18807]
[1763658253762,0.02865793,87746.0,87712.0,0.03021919]
[1763658253763,0.0114106,87737.0,87712.0,0.03021919]
[1763658253958,0.0114106,87737.0,87728.0,0.00017088]
[1763658253959,0.01360863,87737.0,87728.0,0.00017088]
[1763658254155,0.0114116,87729.0,87728.0,0.00017088]
[1763658254355,0.01360963,87729.0,87728.0,0.00017088]
[1763658254956,0.01360963,87729.0,87703.0,1.5]
[1763658255168,0.0114122,87725.0,87676.0,0.03021919]
[1763658255464,0.0114122,87725.0,87667.0,0.00013227]
[1763658255465,0.0114172,87687.0,87667.0,0.00013227]
[1763658255653,0.0114141,87710.0,87667.0,0.00013227]
[1763658255654,0.00219803,87676.0,87667.0,0.00013227]
[1763658255852,0.00219803,87676.0,87670.0,0.05269]
[1763658255853,0.00012003,87675.0,87670.0,0.05269]
[1763658256061,0.00219803,87674.0,87670.0,0.05269]
[1763658256451,0.00219803,87674.0,87671.0,0.0114191]
[1763658256656,3e-08,87675.0,87671.0,0.4114191]
[1763658256860,0.00017108,87681.0,87671.0,0.4114191]
[1763658256861,0.03946403,87714.0,87697.0,0.0114157]
[1763658257057,0.00219803,87713.0,87696.0,0.05269]
[1763658257256,0.00219803,87713.0,87697.0,0.0114157]
[1763658257456,0.00219803,87713.0,87701.0,0.0114151]
[1763658257764,0.00219803,87713.0,87696.0,0.05269]
[1763658257967,1.08e-06,87716.0,87710.0,0.011414]
[1763658258172,1.08e-06,87716.0,87696.0,0.05269]
[1763658258173,0.0917213,87727.0,87720.0,0.05269]
[1763658258369,0.0917213,87727.0,87696.0,0.05269]
[1763658258370,0.00219803,87721.0,87696.0,0.05269]
[1763658258666,0.00219803,87721.0,87700.0,0.0114153]
[1763658258866,0.00219803,87721.0,87696.0,0.05269]
[1763658258867,0.0114134,87716.0,87696.0,0.05269]
[1763658259168,0.002369,87715.0,87697.0,0.00017097]
[1763658259762,0.002369,87715.0,87698.0,0.0114156]
[1763658260160,0.002369,87715.0,87702.0,0.011415]
[1763658260472,0.002369,87715.0,87701.0,0.0114152]
[1763658260771,0.09094883,87727.0,87725.0,0.05269]
[1763658260959,0.03946403,87759.0,87725.0,0.05269]
[1763658261156,0.01,87790.0,87725.0,0.05269]
[1763658261157,0.03946403,87776.0,87750.0,0.05269]
[1763658261356,0.01,87800.0,87775.0,0.05269]
[1763658261357,0.03946403,87793.0,87775.0,0.05269]
[1763658261667,0.00219803,87792.0,87775.0,0.05269]
[1763658261860,0.0114005,87815.0,87775.0,0.05269]
[1763658262062,0.0114011,87810.0,87800.0,0.05269]
[1763658262362,0.00219803,87809.0,87800.0,0.05269]
[1763658262559,0.0113999,87820.0,87800.0,0.05269]
[1763658262757,0.00219803,87819.0,87800.0,0.05269]
[1763658262956,0.09332366,87825.0,87800.0,0.05269]
[1763658263162,0.05925455,87863.0,87800.0,0.05269]
[1763658263163,8.7e-07,87818.0,87817.0,0.0114002]
[1763658263362,0.00219803,87842.0,87800.0,0.05269]
[1763658263557,0.00219803,87842.0,87800.0,0.1097015]
[1763658263759,0.00219803,87842.0,87826.0,0.011399]
[1763658263959,0.00219803,87842.0,87820.0,0.0113997]
[1763658264169,0.0113974,87838.0,87822.0,0.00017077]
[1763658264475,0.0113993,87824.0,87822.0,0.00017077]
[1763658264767,0.00017077,87840.0,87823.0,0.00219803]
[1763658265068,0.0113975,87838.0,87823.0,0.00219803]
[1763658265273,0.00072988,87837.0,87823.0,0.00219803]
[1763658265461,0.0113989,87827.0,87823.0,0.00219803]
[1763658265768,0.00017077,87840.0,87800.0,0.05269]
[1763658265769,0.0113996,87822.0,87800.0,0.05269]
[1763658265965,0.00072988,87821.0,87801.0,0.01360023]
[1763658266168,0.00072988,87821.0,87801.0,0.00219803]
[1763658266774,0.011401,87811.0,87802.0,0.00017077]
[1763658266962,0.00017077,87820.0,87803.0,0.00219803]
[1763658266963,0.0114017,87806.0,87803.0,0.00219803]
[1763658267268,0.00072988,87804.0,87803.0,0.00219803]
[1763658267575,0.00072988,87804.0,87766.0,0.0114068]
[1763658267576,0.0114034,87793.0,87766.0,0.0114068]
[1763658267757,0.00072988,87792.0,87780.0,0.00219803]
[1763658267963,0.0114064,87770.0,87750.0,0.05269]
[1763658268158,0.00072988,87769.0,87757.0,0.00219803]
[1763658268460,0.0114075,87761.0,87757.0,0.00219803]
[1763658268665,0.00072988,87758.0,87757.0,0.00219803]
[1763658269459,0.0114018,87805.0,87757.0,0.00219803]
[1763658269663,0.364281,87830.0,87758.0,0.0114078]
[1763658269664,0.00072988,87792.0,87758.0,0.0114078]
[1763658269860,0.00072988,87792.0,87759.0,0.00219803]
[1763658270067,0.00072988,87792.0,87762.0,0.0114073]
[1763658270261,0.00072988,87792.0,87759.0,0.00219803]
[1763658270262,0.00072988,87792.0,87781.0,0.0114048]
[1763658270470,0.00072988,87792.0,87791.0,0.00219803]
[1763658271066,0.0114044,87785.0,87778.0,0.00017087]
[1763658271267,0.00072988,87779.0,87740.0,0.354281]
[1763658271573,0.00072988,87779.0,87757.0,0.00219803]
[1763658271765,0.00072988,87779.0,87758.0,0.0114078]
[1763658271965,0.01213498,87779.0,87778.0,0.00219803]
[1763658272262,0.00072988,87779.0,87778.0,0.00219803]
[1763658272467,0.0114061,87771.0,87770.0,0.00017087]
[1763658272671,0.01213598,87771.0,87770.0,0.00017087]
[1763658273074,0.01213598,87771.0,87752.0,0.05125]
[1763658273075,0.0114073,87763.0,87752.0,0.05125]
[1763658273266,0.03946403,87781.0,87757.0,0.00219803]
[1763658273573,0.00072988,87780.0,87767.0,0.0114066]
[1763658273766,0.00072988,87780.0,87752.0,0.05059]
[1763658273767,0.09213126,87780.0,87769.0,0.0114064]
[1763658273968,0.00072988,87780.0,87779.0,0.00219803]
[1763658274775,8.7e-07,87783.0,87780.0,0.011405]
[1763658275073,8.7e-07,87783.0,87782.0,0.00219803]
[1763658275473,0.00073075,87783.0,87782.0,0.00219803]
[1763658276470,8.7e-07,87783.0,87782.0,0.01360273]
[1763658276778,0.00073075,87783.0,87782.0,0.00219803]
[1763658277468,8.7e-07,87783.0,87782.0,0.00219803]
[1763658278071,0.05086433,87817.0,87803.0,0.0114019]
[1763658278273,0.01213008,87817.0,87805.0,0.0114017]
[1763658278572,0.0153753,87817.0,87816.0,0.00219803]
[1763658278879,0.05925455,87830.0,87816.0,0.00219803]
[1763658278880,0.03946403,87845.0,87816.0,0.00219803]
[1763658279085,0.00090075,87839.0,87828.0,0.05059]
[1763658279376,0.00090075,87839.0,87829.0,0.00219803]
[1763658279884,0.0113983,87832.0,87829.0,0.00219803]
[1763658280070,0.00072988,87830.0,87829.0,0.00219803]
[1763658280380,0.00072988,87830.0,87822.0,0.00017087]
[1763658280381,0.0113994,87823.0,87822.0,0.00017087]
[1763658280581,0.0114014,87808.0,87764.0,0.0114069]
[1763658280768,0.0114049,87781.0,87777.0,0.00219803]
[1763658281081,0.00072988,87778.0,87777.0,0.00219803]
[1763658281580,0.00072988,87778.0,87756.0,0.00010828]
[1763658281581,0.0114063,87770.0,87769.0,0.00017087]
[1763658281784,0.00072988,87770.0,87769.0,0.0023689]
[1763658282170,0.00072988,87770.0,87769.0,0.00017087]
[1763658282376,0.00072988,87770.0,87769.0,0.0023689]
[1763658282571,0.00072988,87770.0,87756.0,0.00010828]
[1763658283877,0.00072988,87770.0,87763.0,0.0114071]
[1763658284092,0.00072988,87770.0,87756.0,0.00010828]
[1763658284786,0.00072988,87770.0,87761.0,0.0114074]
[1763658285080,0.00072988,87770.0,87757.0,0.0114079]
[1763658285282,0.00072988,87770.0,87767.0,0.0114066]
[1763658285580,0.00017087,87786.0,87760.0,0.354281]
[1763658285883,0.00219803,87785.0,87760.0,0.354281]
[1763658286082,0.0114052,87779.0,87767.0,0.0114066]
[1763658286386,0.00017087,87786.0,87775.0,0.05059]
[1763658286387,0.00219803,87778.0,87775.0,0.05059]
[1763658286681,0.00219803,87778.0,87772.0,0.0114059]
[1763658286878,0.00219803,87778.0,87768.0,0.00017051]
[1763658287286,0.00219803,87778.0,87768.0,0.05076051]
[1763658287796,0.00219803,87778.0,87768.0,0.00017051]
[1763658288083,0.00219803,87778.0,87768.0,0.05076051]
[1763658288485,0.00219803,87778.0,87768.0,0.00017051]
[1763658288673,0.0114064,87769.0,87768.0,0.00017051]
[1763658288980,0.00219803,87769.0,87768.0,0.05076051]
[1763658289370,0.00219803,87769.0,87768.0,0.00017051]
[1763658292677,0.0114074,87762.0,87756.0,0.00010828]
[1763658292881,0.00219803,87757.0,87756.0,0.00010828]
[1763658293280,0.09330406,87789.0,87756.0,0.00010828]
[1763658293583,0.0114079,87758.0,87756.0,0.00010828]
[1763658293771,0.16923803,87757.0,87756.0,0.00010828]
[1763658294580,0.00219803,87757.0,87756.0,0.00010828]
[1763658294784,0.16923803,87757.0,87756.0,0.00010828]
[1763658295189,0.0114095,87746.0,87724.0,0.05059]
[1763658295481,0.00017097,87744.0,87724.0,0.05059]
[1763658295685,0.00219803,87743.0,87724.0,0.0620022]
[1763658295979,0.00219803,87743.0,87719.0,0.0114128]
[1763658295980,0.011411,87734.0,87719.0,0.0114128]
[1763658296173,0.00219803,87733.0,87710.0,0.354281]
[1763658296379,0.00219803,87733.0,87690.0,0.04080808]
[1763658296380,0.00011136,87732.0,87690.0,0.354281]
[1763658296576,0.0114123,87724.0,87708.0,0.0114142]
[1763658296779,0.00219803,87723.0,87690.0,0.3656976]
[1763658297085,0.01701799,87723.0,87709.0,0.0114142]
[1763658297281,0.01701799,87723.0,87715.0,0.0114134]
[1763658297479,0.01701799,87723.0,87718.0,0.011413]
[1763658297681,0.00219803,87723.0,87722.0,0.17087]
[1763658298077,0.01679086,87723.0,87698.0,0.0114156]
[1763658298286,0.00219803,87723.0,87698.0,0.0114155]
[1763658298474,0.0114131,87718.0,87692.0,0.05059]
[1763658298674,0.0114133,87716.0,87692.0,0.05059]
[1763658298882,0.00219803,87715.0,87706.0,0.0114145]
[1763658299099,0.00219803,87715.0,87710.0,0.011414]
[1763658299480,8.099e-05,87717.0,87716.0,0.0983333]
[1763658299681,8.099e-05,87717.0,87716.0,0.17087]
[1763658299981,0.00227902,87717.0,87716.0,0.17087]
[1763658300377,0.0114139,87712.0,87693.0,0.0114163]
[1763658300576,0.00227902,87717.0,87716.0,0.1822833]
[1763658300577,8.099e-05,87717.0,87716.0,0.1822833]
[1763658300780,0.08979406,87725.0,87724.0,0.1822823]
[1763658300781,0.00017097,87725.0,87724.0,0.1822823]
[1763658300983,0.0114109,87735.0,87718.0,0.011413]
[1763658301181,0.0114109,87735.0,87717.0,0.05059]
[1763658301182,0.00219803,87734.0,87722.0,0.0114124]
[1763658301388,0.00219803,87734.0,87726.0,0.0114119]
[1763658301578,0.00219803,87734.0,87717.0,0.05059]
[1763658301985,0.002369,87734.0,87721.0,0.0114125]
[1763658302293,0.002369,87734.0,87733.0,0.08692]
[1763658302594,0.011413,87718.0,87717.0,0.00017097]
[1763658302778,0.00219803,87718.0,87717.0,0.07237097]
[1763658302976,0.00017097,87734.0,87717.0,0.07237097]
[1763658302977,0.00017097,87734.0,87733.0,0.15372]
[1763658303180,0.002369,87734.0,87717.0,0.04725097]
[1763658303385,0.002369,87734.0,87718.0,0.011413]
[1763658303686,0.002369,87734.0,87727.0,0.0114119]
[1763658303890,0.002369,87734.0,87733.0,0.15372]
[1763658304089,0.0114066,87768.0,87748.0,0.011409]
[1763658304291,0.00219803,87767.0,87759.0,0.04708]
[1763658304588,0.01741605,87767.0,87766.0,0.0722]
[1763658304794,0.01521802,87767.0,87766.0,0.15372]
[1763658304982,0.0114055,87776.0,87766.0,0.15372]
[1763658305182,0.00219803,87775.0,87766.0,0.15372]
[1763658305388,0.00219803,87775.0,87763.0,0.0114071]
[1763658305588,0.0114068,87766.0,87762.0,0.00017097]
[1763658305783,0.00017097,87780.0,87740.0,0.19507526]
[1763658305784,0.00219803,87763.0,87740.0,0.19507526]
[1763658305990,0.09246754,87763.0,87740.0,0.19507526]
[1763658306189,0.19507526,87760.0,87720.0,0.19507526]
[1763658306391,0.0114096,87745.0,87730.0,0.19507526]
[1763658306603,0.09026951,87763.0,87730.0,0.19507526]
[1763658306604,0.00219803,87744.0,87730.0,0.19507526]
[1763658306797,0.00219803,87744.0,87728.0,0.00017097]
[1763658307194,0.0114116,87729.0,87728.0,0.00017097]
[1763658307394,0.01360963,87729.0,87728.0,0.00017097]
[1763658307584,0.00219803,87729.0,87728.0,0.00017097]
[1763658307991,0.07859803,87729.0,87728.0,0.00017097]
[1763658308192,0.00219803,87729.0,87728.0,0.00017097]
[1763658308696,0.49333312,87729.0,87696.0,0.04708]
[1763658308897,0.49333312,87729.0,87670.0,0.04708]
[1763658308898,0.00219803,87729.0,87685.0,0.0114173]
[1763658309104,0.0114151,87703.0,87670.0,0.40211984]
[1763658309288,0.0114122,87725.0,87672.0,0.0114189]
[1763658309289,0.0114163,87694.0,87672.0,0.0114189]
[1763658309491,0.00219803,87693.0,87692.0,0.15372]
[1763658309701,0.00219803,87693.0,87692.0,0.0722]
[1763658309889,0.15683,87682.0,87648.0,0.0585021]
[1763658310085,0.0114187,87675.0,87648.0,0.04708]
[1763658310298,0.00219803,87674.0,87654.0,0.0114213]
[1763658310496,0.00017107,87670.0,87626.0,0.04708]
[1763658310686,0.0114199,87666.0,87630.0,0.0114245]
[1763658310886,0.00219803,87665.0,87634.0,0.011424]
[1763658311093,0.00219803,87665.0,87631.0,1.5]
[1763658311094,0.00010246,87664.0,87653.0,0.0114214]
[1763658311300,0.00219803,87654.0,87631.0,1.5]
[1763658311598,9.038e-05,87653.0,87626.0,0.04708]
[1763658311797,0.00219803,87627.0,87600.0,0.359756]
[1763658312101,0.00845767,87626.0,87601.0,1.5]
[1763658312297,0.0106557,87626.0,87623.0,0.0114253]
[1763658312895,0.0106557,87626.0,87601.0,1.5]
[1763658312896,0.0106557,87626.0,87617.0,0.0114261]
[1763658313096,0.0106557,87626.0,87620.0,0.0114257]
[1763658313289,0.10357014,87626.0,87614.0,0.0114265]
[1763658313484,0.10357014,87626.0,87607.0,0.04708]
[1763658313485,0.0106557,87626.0,87619.0,0.0114259]
[1763658313689,0.0106557,87626.0,87608.0,0.0114273]
[1763658313897,0.0106557,87626.0,87623.0,0.0114253]
[1763658314092,0.0106557,87626.0,87621.0,0.0114256]
[1763658314489,0.09076994,87632.0,87630.0,0.04708]
[1763658314698,0.00219803,87632.0,87607.0,0.04708]
[1763658314886,0.0015631,87625.0,87621.0,0.0114256]
[1763658315094,0.00219803,87624.0,87610.0,0.35503984]
[1763658315288,0.00219803,87624.0,87616.0,0.0114263]
[1763658315501,0.00017119,87629.0,87621.0,0.0114256]
[1763658315699,0.00236922,87629.0,87615.0,0.0114264]
[1763658315893,0.0114261,87618.0,87611.0,0.00017119]
[1763658316103,0.00104202,87623.0,87611.0,0.00017119]
[1763658316104,0.00219803,87612.0,87611.0,0.00017119]
[1763658316500,0.00532464,87612.0,87611.0,0.00017119]
[1763658316906,0.00532464,87612.0,87580.0,0.35503984]
[1763658316907,0.1682583,87601.0,87580.0,0.0114309]
[1763658317103,0.00219803,87600.0,87570.0,0.35503984]
[1763658317303,0.02930086,87600.0,87570.0,0.35503984]
[1763658317606,0.02930086,87600.0,87593.0,0.0114293]
[1763658317792,0.02930086,87600.0,87587.0,0.01143]
[1763658317996,0.02930086,87600.0,87591.0,0.0114295]
[1763658317997,0.00010515,87599.0,87591.0,0.0114295]
[1763658318199,0.00219803,87598.0,87582.0,0.04708]
[1763658318398,0.00219803,87598.0,87584.0,0.0114305]
[1763658318594,0.00532464,87598.0,87591.0,0.0114294]
[1763658318802,0.00532464,87598.0,87597.0,0.15372]
[1763658319004,0.00017119,87602.0,87601.0,0.15372]
[1763658319312,0.15350698,87653.0,87604.0,0.04708]
[1763658319602,0.15350698,87653.0,87601.0,0.15372]
[1763658319603,0.00989962,87602.0,87601.0,0.15372]
[1763658319806,0.01209765,87602.0,87590.0,0.35503984]
[1763658320006,0.00219803,87602.0,87582.0,0.04708]
[1763658320301,0.01476231,87601.0,87600.0,0.1651484]
[1763658320508,0.01696034,87601.0,87586.0,0.0114301]
[1763658320703,0.01696034,87601.0,87583.0,0.00017119]
[1763658320704,0.01476231,87601.0,87597.0,0.0114288]
[1763658320904,0.01476231,87601.0,87583.0,0.00017119]
[1763658320905,0.01476231,87601.0,87600.0,0.1651484]
[1763658321305,0.01476231,87601.0,87600.0,0.15372]
[1763658321620,0.01476231,87601.0,87583.0,0.00017119]
[1763658321621,0.0114301,87588.0,87583.0,0.00017119]
[1763658321798,0.00219803,87584.0,87583.0,0.00017119]
[1763658321996,0.01772571,87587.0,87586.0,0.15372]
[1763658322204,0.00219803,87587.0,87586.0,0.0722]
[1763658322395,0.00017119,87601.0,87586.0,0.0722]
[1763658322396,0.00156422,87600.0,87599.0,0.08152]
[1763658322703,0.00072988,87600.0,87599.0,0.00219803]
[1763658322904,0.01,87660.0,87600.0,0.15372]
[1763658323105,0.07075875,87667.0,87601.0,0.00219803]
[1763658323106,0.00072988,87632.0,87601.0,0.00219803]
[1763658323295,0.00072988,87632.0,87625.0,0.011425]
[1763658323495,0.00072988,87632.0,87631.0,0.15591803]
[1763658323910,0.1060795,87653.0,87651.0,0.0114216]
[1763658324201,0.1060795,87653.0,87633.0,0.04708]
[1763658324202,0.00072988,87652.0,87643.0,0.00017119]
[1763658324394,0.00072988,87652.0,87643.0,0.00236922]
[1763658324908,0.00072988,87652.0,87644.0,1.5]
[1763658325203,0.00072988,87652.0,87645.0,0.00219803]
[1763658325406,0.0114218,87651.0,87645.0,0.00219803]
[1763658325605,0.00072988,87646.0,87645.0,0.00219803]
[1763658325906,0.00072988,87646.0,87645.0,0.16734053]
[1763658326211,0.00017119,87661.0,87645.0,0.15591803]
[1763658326403,0.01601244,87661.0,87654.0,0.0114213]
[1763658326704,0.00017119,87661.0,87660.0,0.15372]
[1763658326907,0.00017119,87661.0,87660.0,0.07439803]
[1763658327118,0.00017119,87661.0,87648.0,0.04708]
[1763658327119,0.00017119,87661.0,87643.0,0.00017119]
[1763658327403,0.0114213,87655.0,87643.0,0.00236922]
[1763658327603,0.0114206,87660.0,87643.0,0.00236922]
[1763658327799,0.09069807,87661.0,87643.0,0.00236922]
[1763658328007,0.00017119,87661.0,87660.0,0.15372]
[1763658328200,0.01592068,87681.0,87675.0,0.04708]
[1763658328400,0.0570696,87712.0,87666.0,0.0114197]
[1763658328606,0.0570696,87712.0,87660.0,0.00219803]
[1763658328607,0.011417,87688.0,87667.0,0.00219803]
[1763658328800,0.011419,87673.0,87667.0,0.00219803]
[1763658328999,0.0114184,87678.0,87667.0,0.00219803]
[1763658329402,0.0114186,87676.0,87667.0,0.00219803]
[1763658329602,0.0114185,87676.0,87667.0,0.00219803]
[1763658329803,0.0114186,87676.0,87667.0,0.00219803]
[1763658329998,0.0114185,87676.0,87667.0,0.00219803]
[1763658330199,0.09097097,87678.0,87667.0,0.00219803]
[1763658330399,0.00017106,87681.0,87664.0,0.00017106]
[1763658330400,0.0114199,87665.0,87664.0,0.00017106]
[1763658330600,0.0114211,87657.0,87630.0,0.42670597]
[1763658330806,0.0764,87637.0,87636.0,0.00219803]
[1763658330996,0.0764,87637.0,87613.0,0.00012409]
[1763658330997,0.0114264,87616.0,87613.0,0.00012409]
[1763658331202,0.0114264,87616.0,87614.0,0.00073267]
[1763658331404,0.00219803,87615.0,87614.0,0.00073267]
[1763658331597,0.00219803,87615.0,87614.0,0.07125267]
[1763658331803,0.09279392,87619.0,87614.0,0.13832267]
[1763658332003,0.00219803,87618.0,87617.0,0.07052]
[1763658332205,0.00017116,87626.0,87625.0,0.14369]
[1763658332406,0.0114188,87674.0,87626.0,0.04469267]
[1763658332407,0.00017116,87634.0,87626.0,0.04469267]
[1763658332708,0.00219803,87627.0,87626.0,0.00073267]
[1763658333102,0.00219803,87627.0,87618.0,0.00017116]
[1763658333103,0.0114259,87619.0,87618.0,0.00017116]
[1763658333413,0.07216803,87619.0,87618.0,0.00090383]
[1763658334213,0.14251803,87619.0,87618.0,0.00090383]
[1763658334409,0.00219803,87619.0,87618.0,0.00090383]
[1763658334802,0.00219803,87619.0,87618.0,0.14779383]
[1763658335002,0.00219803,87619.0,87618.0,0.07462383]
[1763658335210,0.00219803,87619.0,87618.0,0.14779383]
[1763658335515,0.0114261,87618.0,87613.0,0.00012409]
[1763658335709,0.00219803,87614.0,87613.0,0.00012409]
[1763658336010,0.07216803,87614.0,87613.0,0.00012409]
[1763658336313,0.14251803,87614.0,87613.0,9e-08]
[1763658336606,0.14251803,87614.0,87605.0,0.00017116]
[1763658336607,0.0114276,87606.0,87605.0,0.00017116]
[1763658336808,0.00219803,87606.0,87605.0,0.00017116]
[1763658337210,0.00017116,87614.0,87613.0,0.07372]
[1763658337406,0.00248813,87614.0,87605.0,0.00017116]
[1763658337605,0.00248813,87614.0,87605.0,0.01159886]
[1763658337807,0.00248813,87614.0,87613.0,0.14689]
[1763658338405,0.0114267,87613.0,87605.0,0.00017116]
[1763658338607,0.00219803,87606.0,87605.0,0.00017116]
[1763658339009,0.00219803,87606.0,87605.0,0.14706116]
[1763658339216,0.0002901,87614.0,87613.0,0.14689]
[1763658339414,0.00248813,87614.0,87613.0,0.14689]
[1763658339708,0.0114276,87607.0,87605.0,0.00017116]
[1763658339914,0.00219803,87606.0,87605.0,0.00017116]
[1763658340309,0.00219803,87606.0,87605.0,0.14706116]
[1763658340512,0.0002901,87614.0,87613.0,0.14689]
[1763658340710,0.00248813,87614.0,87613.0,0.14689]
[1763658340908,0.00248813,87614.0,87605.0,0.00017116]
[1763658341210,0.0114273,87609.0,87605.0,0.00017116]
[1763658341410,0.00219803,87606.0,87605.0,0.00017116]
[1763658341615,0.07216803,87606.0,87605.0,0.00017116]
[1763658341815,0.00219803,87606.0,87605.0,0.07389116]
[1763658342410,0.0002901,87614.0,87613.0,0.1583167]
[1763658342609,0.03955937,87647.0,87626.0,0.14689]
[1763658342905,0.01215767,87627.0,87626.0,0.00219803]
[1763658343109,0.09212916,87627.0,87626.0,0.00219803]
[1763658343309,0.00073267,87627.0,87626.0,0.00219803]
[1763658343509,0.00073267,87627.0,87626.0,0.14908803]
[1763658343913,0.09201951,87627.0,87605.0,0.00017116]
[1763658344217,0.0114271,87610.0,87608.0,0.00219803]
[1763658344415,0.00073267,87609.0,87608.0,0.00219803]
[1763658344817,0.00073267,87609.0,87605.0,0.00017116]
[1763658344818,0.0114274,87608.0,87605.0,0.00017116]
[1763658345115,0.00073267,87606.0,87605.0,0.00236919]
[1763658345305,0.14105267,87606.0,87605.0,0.00236919]
[1763658345505,0.00073267,87606.0,87605.0,0.00236919]
[1763658345905,0.00073267,87606.0,87605.0,0.00017116]
[1763658346105,0.14105267,87606.0,87605.0,0.00017116]
[1763658346312,0.00073267,87606.0,87605.0,0.00017116]
[1763658346513,0.14105267,87606.0,87605.0,0.00017116]
[1763658347414,0.0114303,87586.0,87575.0,0.0114316]
[1763658347617,0.0114314,87577.0,87576.0,0.00219803]
[1763658347811,0.01216407,87577.0,87576.0,0.00219803]
[1763658348008,0.03241152,87577.0,87576.0,0.00219803]
[1763658348212,0.17273152,87577.0,87576.0,0.00219803]
[1763658348511,0.17273152,87577.0,87549.0,0.04396]
[1763658348512,0.02098012,87577.0,87549.0,0.04396]
[1763658348716,0.11067333,87577.0,87554.0,0.00017127]
[1763658348919,0.0114317,87575.0,87554.0,0.00017127]
[1763658349120,0.0114324,87570.0,87555.0,0.0114343]
[1763658349312,0.00219803,87569.0,87554.0,0.00017127]
[1763658349518,0.14032,87556.0,87554.0,0.00017127]
[1763658349711,0.14251803,87555.0,87520.0,0.0114388]
[1763658349918,0.0114346,87553.0,87536.0,0.0114366]
[1763658350115,8.168e-05,87554.0,87512.0,0.00014061]
[1763658350116,0.00219803,87552.0,87512.0,0.00014061]
[1763658350311,0.00011025,87551.0,87512.0,0.00014061]
[1763658350520,0.00230828,87551.0,87550.0,0.0114349]
[1763658350714,0.00011025,87551.0,87550.0,0.14689]
[1763658351020,0.05475404,87551.0,87523.0,0.03026889]
[1763658351214,0.00219803,87550.0,87520.0,0.03026889]
[1763658351416,0.0114355,87546.0,87517.0,0.0114392]
[1763658351612,0.0114355,87546.0,87511.0,0.03026889]
[1763658351613,0.00219803,87546.0,87510.0,0.42670597]
[1763658351818,0.0114362,87541.0,87529.0,0.0114377]
[1763658352125,0.01409213,87540.0,87531.0,0.0114373]
[1763658352426,0.05527595,87544.0,87540.0,0.0114362]
[1763658352723,0.05527595,87544.0,87538.0,0.0114364]
[1763658352724,0.00219803,87544.0,87538.0,0.0114364]
[1763658352925,0.08934105,87551.0,87524.0,0.1156]
[1763658353219,0.08934105,87551.0,87530.0,0.42670597]
[1763658353220,0.0114361,87542.0,87530.0,0.42670597]
[1763658353420,0.06623611,87550.0,87535.0,0.0114368]
[1763658353618,0.0114368,87536.0,87535.0,0.07372]
[1763658353821,0.00219803,87549.0,87535.0,0.07372]
[1763658354129,0.00104394,87540.0,87524.0,0.11564]
[1763658354424,0.00219803,87540.0,87524.0,0.11564]
[1763658354629,0.06780229,87543.0,87542.0,0.14689]
[1763658354822,0.0114352,87548.0,87547.0,0.14689]
[1763658355017,0.01363323,87548.0,87547.0,0.14689]
[1763658355621,0.07151846,87548.0,87547.0,0.14689]
[1763658355923,0.0114363,87540.0,87539.0,0.07372]
[1763658356127,0.0114363,87540.0,87539.0,0.14689]
[1763658356318,0.0114363,87540.0,87512.0,0.01158041]
[1763658356319,0.00219803,87548.0,87547.0,0.14689]
[1763658356626,0.00219803,87548.0,87512.0,0.01158041]
[1763658356627,0.0114372,87533.0,87532.0,0.14689]
[1763658357018,0.00017127,87541.0,87537.0,0.14689]
[1763658357217,0.0114362,87540.0,87537.0,0.14689]
[1763658357420,0.05423107,87540.0,87537.0,0.14689]
[1763658357624,0.05423107,87540.0,87539.0,0.07372]
[1763658358023,0.09284,87551.0,87512.0,0.00014061]
[1763658358024,0.09284,87551.0,87550.0,0.07372]
[1763658358219,0.09284,87551.0,87520.0,0.42670597]
[1763658358220,0.0114351,87549.0,87527.0,0.03948]
[1763658358420,0.01200504,87540.0,87527.0,0.0509178]
[1763658358619,0.0114368,87536.0,87535.0,0.07372]
[1763658358823,0.0114368,87536.0,87535.0,0.14689]
[1763658359024,0.0114363,87540.0,87538.0,0.07372]
[1763658359328,0.00017127,87544.0,87539.0,0.07372]
[1763658359519,0.00017127,87544.0,87543.0,0.14689]
[1763658359720,0.00017127,87544.0,87543.0,0.1583258]
[1763658359923,0.00434665,87544.0,87543.0,0.14689]
[1763658360220,0.00654468,87544.0,87527.0,0.00017127]
[1763658360421,0.0114374,87532.0,87531.0,0.14689]
[1763658360622,0.0114369,87536.0,87531.0,0.14689]
[1763658360824,0.01618206,87532.0,87531.0,0.14689]
[1763658361028,0.00017127,87544.0,87543.0,0.14689]
[1763658361226,0.00208714,87532.0,87531.0,0.07372]
[1763658361432,0.00208714,87532.0,87527.0,0.00017127]
[1763658361433,0.0114378,87528.0,87527.0,0.00017127]
[1763658361629,0.01363583,87528.0,87527.0,0.00017127]
[1763658361927,0.01363583,87528.0,87506.0,0.1154]
[1763658361928,0.0114379,87527.0,87515.0,0.0114394]
[1763658362230,0.01096345,87526.0,87500.0,0.42670597]
[1763658362423,0.01316148,87526.0,87496.0,0.011442]
[1763658362622,0.01316148,87526.0,87484.0,0.0114435]
[1763658362623,0.00219803,87526.0,87498.0,0.0114417]
[1763658362821,0.0114396,87515.0,87493.0,0.0282]
[1763658363017,0.00017137,87522.0,87521.0,0.14242]
[1763658363222,0.0023694,87522.0,87491.0,0.0114426]
[1763658363420,0.0114396,87515.0,87491.0,0.0114426]
[1763658363629,0.01363763,87515.0,87508.0,0.0114404]
[1763658363922,0.00017137,87522.0,87512.0,0.01158041]